fUSD/lending_fUSD_20250826
["ID","MTS","AMOUNT","RATE_DAILY","PERIOD"]
[381492217,1756230818263,-1109.68,0.00029863,5]
[381492218,1756230818273,-772.05,0.00029863,5]
[381492219,1756230818283,-1195.33,0.00029863,5]
[381492220,1756230818293,-650.21,0.00029863,5]
[381492221,1756230818303,-3396.04,0.00029863,5]
[381492222,1756230818314,-524.42,0.00029863,5]
[381492223,1756230818324,-400.0,0.00029863,5]
[381492224,1756230818335,-400.0,0.00029863,5]
[381492225,1756230818345,-400.0,0.00029863,5]
[381492226,1756230818354,-663.26,0.00029863,5]
[381492227,1756230818364,-979.78,0.00029863,5]
[381492228,1756230818374,-936.41,0.00029863,5]
[381492229,1756230818384,-773.75,0.00029863,5]
[381492230,1756230818394,-669.79,0.00029863,5]
[381492231,1756230818404,-1622.1,0.00029863,5]
[381492232,1756230818415,-406.22,0.00029863,5]
[381492233,1756230818425,-901.22,0.00029863,5]
[381492234,1756230818435,-204.36998174,0.00029863,5]
[381492235,1756230818445,-742.95,0.00029863,5]
[381492236,1756230818455,-400.0,0.00029863,5]
[381492237,1756230818466,-1367.67,0.00029863,5]
[381492238,1756230818476,-400.0,0.00029863,5]
[381492239,1756230818486,-909.97,0.00029863,5]
[381492240,1756230818621,-400.0,0.00029863,5]
[381492241,1756230818640,-1346.04,0.00029863,5]
[381492242,1756230818651,-400.0,0.00029863,5]
[381492243,1756230818660,-1159.55,0.00029863,5]
[381492244,1756230818671,-1144.5,0.00029863,5]
[381492245,1756230818681,-400.0,0.00029863,5]
[381492246,1756230818693,-400.0,0.00029863,5]
[381492247,1756230818703,-957.94,0.00029863,5]
[381492248,1756230818712,-400.0,0.00029863,5]
[381492249,1756230818722,-1349.87,0.00029863,5]
[381492250,1756230818731,-400.0,0.00029863,5]
[381492251,1756230818742,-746.51,0.00029863,5]
[381492252,1756230818751,-646.69,0.00029863,5]
[381492253,1756230818760,-400.0,0.00029863,5]
[381492254,1756230818771,-1218.8,0.00029863,5]
[381492255,1756230818781,-400.0,0.00029863,5]
[381492256,1756230818790,-803.65,0.00029863,5]
[381492257,1756230818800,-486.65,0.00029863,5]
[381492258,1756230818810,-802.89,0.00029863,5]
[381492259,1756230818820,-1750.37,0.00029863,5]
[381492260,1756230818830,-595.5,0.00029863,5]
[381492261,1756230818839,-473.57,0.00029863,5]
[381492262,1756230818849,-400.0,0.00029863,5]
[381492263,1756230818860,-196.81550678,0.00029863,5]
[381492264,1756230818869,-400.0,0.00029863,5]
[381492265,1756230818879,-584.57,0.00029863,5]
[381492266,1756230818889,-3322.0,0.00029863,5]
[381492267,1756230818900,-1034.18,0.00029863,5]
[381492268,1756230818910,-400.0,0.00029863,5]
[381492269,1756230818921,-567.64,0.00029863,5]
[381492270,1756230818931,-1068.12,0.00029863,5]
[381492271,1756230818942,-679.23,0.00029863,5]
[381492272,1756230818953,-1261.88,0.00029863,5]
[381492273,1756230818963,-1292.44,0.00029863,5]
[381492274,1756230818974,-458.84,0.00029863,5]
[381492275,1756230818984,-400.0,0.00029863,5]
[381492276,1756230818994,-400.0,0.00029863,5]
[381492277,1756230819004,-1122.85,0.00029863,5]
[381492278,1756230819014,-400.0,0.00029863,5]
[381492279,1756230819025,-736.74,0.00029863,5]
[381492280,1756230819037,-400.0,0.00029863,5]
[381492281,1756230819048,-598.7,0.00029863,5]
[381492282,1756230819059,-400.0,0.00029863,5]
[381492283,1756230819069,-400.0,0.00029863,5]
[381492284,1756230819079,-400.0,0.00029863,5]
[381492285,1756230819089,-1491.81,0.00029863,5]
[381492286,1756230819099,-750.42,0.00029863,5]
[381492287,1756230819110,-400.0,0.00029863,5]
[381492288,1756230819120,-632.76,0.00029863,5]
[381492289,1756230819131,-463.02,0.00029863,5]
[381492290,1756230819141,-400.0,0.00029863,5]
[381492291,1756230819151,-849.73,0.00029863,5]
[381492292,1756230819162,-400.0,0.00029863,5]
[381492293,1756230819172,-400.0,0.00029863,5]
[381492294,1756230819183,-537.9,0.00029863,5]
[381492295,1756230819193,-400.0,0.00029863,5]
[381492296,1756230819203,-416.7,0.00029863,5]
[381492297,1756230819213,-400.0,0.00029863,5]
[381492298,1756230819223,-1105.29,0.00029863,5]
[381492299,1756230819234,-517.03,0.00029863,5]
[381492300,1756230819244,-1111.68,0.00029863,5]
[381492301,1756230819255,-531.53,0.00029863,5]
[381492302,1756230819266,-1302.16,0.00029863,5]
[381492303,1756230819277,-1203.47,0.00029863,5]
[381492304,1756230819287,-1324.35,0.00029863,5]
[381492305,1756230819297,-712.36,0.00029863,5]
[381492306,1756230819308,-1369.04,0.00029863,5]
[381492307,1756230819318,-1094.27,0.00029863,5]
[381492308,1756230819328,-816.57,0.00029863,5]
[381492309,1756230819338,-694.38,0.00029863,5]
[381492310,1756230819349,-636.59,0.00029863,5]
[381492311,1756230819360,-1171.55,0.00029863,5]
[381492312,1756230819370,-400.0,0.00029863,5]
[381492313,1756230819381,-748.0,0.00029863,5]
[381492314,1756230819393,-674.36,0.00029863,5]
[381492315,1756230819403,-737.97,0.00029863,5]
[381492316,1756230819414,-637.3,0.00029863,5]
[381492317,1756230819424,-408.13,0.00029863,5]
[381492318,1756230819434,-1342.91,0.00029863,5]
[381492319,1756230819445,-719.93,0.00029863,5]
[381492320,1756230819455,-1012.86,0.00029863,5]
[381492321,1756230819465,-715.27,0.00029863,5]
[381492322,1756230819476,-2696.16,0.00029863,5]
[381492323,1756230819487,-282.36549642,0.00029863,5]
[381492324,1756230820145,-550.744,0.00029863,5]
[381492325,1756230821903,-521.62613,0.000248,7]
[381492326,1756230821913,-151.0,0.000248,7]
[381492327,1756230821923,-151.0,0.000248,7]
[381492328,1756230821933,-174.232383,0.000248,7]
[381492329,1756230821942,-151.0,0.000248,7]
[381492330,1756230821952,-521.62613,0.000248,7]
[381492331,1756230821962,-4596.129974,0.000248,7]
[381492332,1756230821972,-521.62613,0.000249,7]
[381492333,1756230821981,-151.0,0.000249,7]
[381492334,1756230821991,-4596.129974,0.000249,7]
[381492335,1756230822001,-174.232383,0.000249,7]
[381492336,1756230822011,-521.62613,0.000249,7]
[381492337,1756230822021,-280.295675,0.000249,7]
[381492338,1756230822031,-4596.129974,0.000249,7]
[381492339,1756230822041,-174.232383,0.000268,7]
[381492340,1756230822051,-521.62613,0.000268,7]
[381492341,1756230822062,-151.0,0.000268,7]
[381492342,1756230822071,-4596.129974,0.000268,7]
[381492343,1756230822081,-174.232383,0.000268,7]
[381492344,1756230822090,-521.62613,0.000268,7]
[381492345,1756230822100,-174.232383,0.000273,7]
[381492346,1756230822110,-521.62613,0.000273,7]
[381492347,1756230822120,-151.0,0.000273,7]
[381492348,1756230822130,-4596.129974,0.000273,7]
[381492349,1756230822140,-174.232383,0.000273,7]
[381492350,1756230822150,-174.232383,0.00027397,7]
[381492351,1756230822159,-521.62613,0.00027397,7]
[381492352,1756230822168,-151.0,0.00027397,7]
[381492353,1756230822178,-4596.129974,0.00027397,7]
[381492354,1756230822188,-400.0,0.00027397,5]
[381492355,1756230822197,-400.0,0.00027671,5]
[381492356,1756230822207,-400.0,0.00027945,5]
[381492357,1756230822217,-1622.59,0.00028767,5]
[381492358,1756230822227,-1622.59,0.00029041,5]
[381492359,1756230822237,-1622.59,0.00029315,5]
[381492360,1756230822247,-1622.59,0.00029589,5]
[381492361,1756230822257,-434.58050358,0.00029863,5]
[381492362,1756230822267,-1920.87,0.00029863,5]
[381492363,1756230822277,-667.39,0.00029863,5]
[381492364,1756230822286,-754.15,0.00029863,5]
[381492365,1756230822296,-400.0,0.00029863,5]
[381492366,1756230822306,-787.87,0.00029863,5]
[381492367,1756230822317,-1759.81,0.00029863,5]
[381492368,1756230822327,-400.0,0.00029863,5]
[381492369,1756230822337,-400.0,0.00029863,5]
[381492370,1756230822347,-1291.3,0.00029863,5]
[381492371,1756230822357,-400.0,0.00029863,5]
[381492372,1756230822367,-1556.21,0.00029863,5]
[381492373,1756230822377,-400.0,0.00029863,5]
[381492374,1756230822387,-400.0,0.00029863,5]
[381492375,1756230822397,-5113.05,0.00029863,5]
[381492376,1756230822406,-576.82,0.00029863,5]
[381492377,1756230822418,-705.33,0.00029863,5]
[381492378,1756230822427,-654.53,0.00029863,5]
[381492379,1756230822437,-1041.63,0.00029863,5]
[381492380,1756230822447,-425.77,0.00029863,5]
[381492381,1756230822458,-519.49175693,0.00029863,5]
[381492382,1756230822498,-4596.129974,0.000268,7]
[381492383,1756230822507,-500.0,0.00028768,2]
[381492384,1756230822517,-689.60824307,0.00029863,5]
[381492385,1756230822527,-613.44,0.00029863,5]
[381492386,1756230822536,-400.0,0.00029863,5]
[381492387,1756230822546,-1479.47,0.00029863,5]
[381492388,1756230822555,-400.0,0.00029863,5]
[381492389,1756230822566,-1317.24,0.00029863,5]
[381492390,1756230822575,-400.0,0.00029863,5]
[381492391,1756230822585,-762.16,0.00029863,5]
[381492392,1756230822594,-960.79,0.00029863,5]
[381492393,1756230822603,-1171.13,0.00029863,5]
[381492394,1756230822613,-630.41,0.00029863,5]
[381492395,1756230822623,-1512.33,0.00029863,5]
[381492396,1756230822632,-386.34,0.00029863,5]
[381492397,1756230822642,-400.0,0.00029863,5]
[381492398,1756230822651,-1422.53,0.00029863,5]
[381492399,1756230822660,-856.1,0.00029863,5]
[381492400,1756230822669,-1303.22,0.00029863,5]
[381492401,1756230822679,-792.6,0.00029863,5]
[381492402,1756230822689,-471.44,0.00029863,5]
[381492403,1756230822702,-1073.32,0.00029863,5]
[381492404,1756230822712,-400.0,0.00029863,5]
[381492405,1756230822722,-1403.76,0.00029863,5]
[381492406,1756230822731,-400.0,0.00029863,5]
[381492407,1756230822743,-1420.21,0.00029863,5]
[381492408,1756230822752,-1007.77,0.00029863,5]
[381492409,1756230822763,-952.45,0.00029863,5]
[381492410,1756230822774,-400.0,0.00029863,5]
[381492411,1756230822783,-491.6,0.00029863,5]
[381492412,1756230822792,-400.0,0.00029863,5]
[381492413,1756230822801,-2280.32,0.00029863,5]
[381492414,1756230822812,-1084.48,0.00029863,5]
[381492415,1756230822822,-1191.78,0.00029863,5]
[381492416,1756230822831,-400.0,0.00029863,5]
[381492417,1756230822840,-1335.11,0.00029863,5]
[381492418,1756230822849,-1124.09,0.00029863,5]
[381492419,1756230822859,-1238.64,0.00029863,5]
[381492420,1756230822869,-1253.31,0.00029863,5]
[381492421,1756230822879,-1325.68,0.00029863,5]
[381492422,1756230822889,-938.22,0.00029863,5]
[381492423,1756230822899,-499.47,0.00029863,5]
[381492424,1756230822909,-601.51,0.00029863,5]
[381492425,1756230822919,-484.19,0.00029863,5]
[381492426,1756230822930,-157.2,0.00029863,5]
[381492427,1756230822940,-797.42,0.00029863,5]
[381492428,1756230822949,-737.11,0.00029863,5]
[381492429,1756230822960,-703.79,0.00029863,5]
[381492430,1756230822969,-1575.39,0.00029863,5]
[381492431,1756230822979,-680.36,0.00029863,5]
[381492432,1756230822989,-672.12,0.00029863,5]
[381492433,1756230822999,-759.87,0.00029863,5]
[381492434,1756230823008,-926.18,0.00029863,5]
[381492435,1756230823019,-400.0,0.00029863,5]
[381492436,1756230823028,-618.83,0.00029863,5]
[381492437,1756230823038,-862.99,0.00029863,5]
[381492438,1756230823047,-281.82336149,0.00029863,5]
[381492439,1756230823057,-1075.04,0.00029863,5]
[381492440,1756230823067,-1447.2,0.00029863,5]
[381492441,1756230823077,-575.53,0.00029863,5]
[381492442,1756230823088,-845.06,0.00029863,5]
[381492443,1756230823097,-489.17,0.00029863,5]
[381492444,1756230823107,-1238.05,0.00029863,5]
[381492445,1756230823117,-1102.7,0.00029863,5]
[381492446,1756230823127,-500.0,0.00029863,10]
[381492447,1756230823136,-1359.79,0.00029863,5]
[381492448,1756230823146,-820.48,0.00029863,5]
[381492449,1756230823155,-1712.23,0.00029863,5]
[381492450,1756230823165,-1138.32,0.00029863,5]
[381492451,1756230823174,-717.51,0.00029863,5]
[381492452,1756230823184,-1260.62,0.00029863,5]
[381492453,1756230823281,-690.59,0.00029863,5]
[381492454,1756230823293,-400.0,0.00029863,5]
[381492455,1756230823303,-400.0,0.00029863,5]
[381492456,1756230823312,-1643.75,0.00029863,5]
[381492457,1756230823322,-956.27,0.00029863,5]
[381492458,1756230823331,-1080.95,0.00029863,5]
[381492459,1756230823340,-704.75,0.00029863,5]
[381492460,1756230823350,-400.0,0.00029863,5]
[381492461,1756230823360,-1188.76,0.00029863,5]
[381492462,1756230823369,-400.0,0.00029863,5]
[381492463,1756230823379,-884.15,0.00029863,5]
[381492464,1756230823388,-903.37,0.00029863,5]
[381492465,1756230823397,-400.0,0.00029863,5]
[381492466,1756230823407,-1272.98,0.00029863,5]
[381492467,1756230823417,-830.28,0.00029863,5]
[381492468,1756230823426,-702.95,0.00029863,5]
[381492469,1756230823436,-4381.4,0.00029863,5]
[381492470,1756230823446,-883.77,0.00029863,5]
[381492471,1756230823455,-1035.82,0.00029863,5]
[381492472,1756230823465,-440.04,0.00029863,5]
[381492473,1756230823475,-588.09,0.00029863,5]
[381492474,1756230823484,-1060.85,0.00029863,5]
[381492475,1756230823494,-729.67,0.00029863,5]
[381492476,1756230823503,-818.36,0.00029863,5]
[381492477,1756230823513,-734.09,0.00029863,5]
[381492478,1756230823523,-1006.17,0.00029863,5]
[381492479,1756230823532,-752.5,0.00029863,5]
[381492480,1756230823542,-1000.26,0.00029863,5]
[381492481,1756230823551,-400.0,0.00029863,5]
[381492482,1756230823561,-400.0,0.00029863,5]
[381492483,1756230823571,-1343.19,0.00029863,5]
[381492484,1756230823581,-1006.41,0.00029863,5]
[381492485,1756230823590,-465.25,0.00029863,5]
[381492486,1756230823600,-574.94,0.00029863,5]
[381492487,1756230823610,-819.77,0.00029863,5]
[381492488,1756230823619,-1087.43,0.00029863,5]
[381492489,1756230823630,-927.58,0.00029863,5]
[381492490,1756230823639,-400.0,0.00029863,5]
[381492491,1756230823648,-1229.66,0.00029863,5]
[381492492,1756230823659,-1561.08,0.00029863,5]
[381492493,1756230823669,-605.76,0.00029863,5]
[381492494,1756230823679,-633.29,0.00029863,5]
[381492495,1756230823689,-1303.8,0.00029863,5]
[381492496,1756230823702,-951.85,0.00029863,5]
[381492497,1756230823712,-673.66,0.00029863,5]
[381492498,1756230823721,-727.97,0.00029863,5]
[381492499,1756230823731,-761.39,0.00029863,5]
[381492500,1756230823742,-400.0,0.00029863,5]
[381492501,1756230823751,-823.04,0.00029863,5]
[381492502,1756230823760,-995.91,0.00029863,5]
[381492503,1756230823771,-726.7,0.00029863,5]
[381492504,1756230823780,-2954.18,0.00029863,5]
[381492505,1756230823791,-932.17,0.00029863,5]
[381492506,1756230823802,-777.25,0.00029863,5]
[381492507,1756230823813,-810.82,0.00029863,5]
[381492508,1756230823822,-674.55,0.00029863,5]
[381492509,1756230823832,-400.0,0.00029863,5]
[381492510,1756230823842,-400.0,0.00029863,5]
[381492511,1756230823852,-894.99,0.00029863,5]
[381492512,1756230823864,-610.96,0.00029863,5]
[381492513,1756230823874,-524.65,0.00029863,5]
[381492514,1756230823883,-433.22,0.00029863,5]
[381492515,1756230823894,-705.71,0.00029863,5]
[381492516,1756230823904,-1276.0,0.00029863,5]
[381492517,1756230823915,-1048.88,0.00029863,5]
[381492518,1756230823924,-635.0,0.00029863,5]
[381492519,1756230823934,-916.09,0.00029863,5]
[381492520,1756230823944,-400.0,0.00029863,5]
[381492521,1756230823953,-1476.54,0.00029863,5]
[381492522,1756230823962,-586.32,0.00029863,5]
[381492523,1756230823972,-420.01,0.00029863,5]
[381492524,1756230823981,-1424.15,0.00029863,5]
[381492525,1756230823991,-735.88,0.00029863,5]
[381492526,1756230824000,-865.15,0.00029863,5]
[381492527,1756230824010,-711.61,0.00029863,5]
[381492528,1756230824019,-417.91563248,0.00029863,5]
[381492529,1756230824029,-657.69,0.00029863,5]
[381492530,1756230824038,-2547.01,0.00029863,5]
[381492531,1756230824048,-924.7,0.00029863,5]
[381492532,1756230824059,-1447.41,0.00029863,5]
[381492533,1756230824070,-569.85,0.00029863,5]
[381492534,1756230824079,-947.0,0.00029863,5]
[381492535,1756230824089,-1125.16,0.00029863,5]
[381492536,1756230824099,-1186.06,0.00029863,5]
[381492537,1756230824108,-1017.63,0.00029863,5]
[381492538,1756230824118,-509.43,0.00029863,5]
[381492539,1756230824128,-629.18,0.00029863,5]
[381492540,1756230824138,-1490.01,0.00029863,5]
[381492541,1756230824148,-1054.6,0.00029863,5]
[381492542,1756230824159,-516.44,0.00029863,5]
[381492543,1756230824169,-810.92,0.00029863,5]
[381492544,1756230824179,-682.69,0.00029863,5]
[381492545,1756230824189,-883.73,0.00029863,5]
[381492546,1756230824198,-1283.33,0.00029863,5]
[381492547,1756230824208,-817.88,0.00029863,5]
[381492548,1756230824218,-1591.74,0.00029863,5]
[381492549,1756230824227,-657.14,0.00029863,5]
[381492550,1756230824238,-559.69,0.00029863,5]
[381492551,1756230824248,-400.0,0.00029863,5]
[381492552,1756230824257,-1009.65,0.00029863,5]
[381492553,1756230824267,-434.49,0.00029863,5]
[381492554,1756230824276,-839.27,0.00029863,5]
[381492555,1756230824286,-400.0,0.00029863,5]
[381492556,1756230824296,-694.48,0.00029863,5]
[381492557,1756230824305,-400.0,0.00029863,5]
[381492558,1756230824317,-1164.11,0.00029863,5]
[381492559,1756230824327,-2471.18,0.00029863,5]
[381492560,1756230824337,-543.23,0.00029863,5]
[381492561,1756230824347,-735.71,0.00029863,5]
[381492562,1756230824357,-923.85,0.00029863,5]
[381492563,1756230824366,-602.76,0.00029863,5]
[381492564,1756230824376,-1015.23,0.00029863,5]
[381492565,1756230824386,-1297.06,0.00029863,5]
[381492566,1756230824395,-400.0,0.00029863,5]
[381492567,1756230824404,-400.0,0.00029863,5]
[381492568,1756230824414,-1022.18,0.00029863,5]
[381492569,1756230824424,-413.82,0.00029863,5]
[381492570,1756230824434,-400.0,0.00029863,5]
[381492571,1756230824444,-435.62,0.00029863,5]
[381492572,1756230824453,-677.17,0.00029863,5]
[381492573,1756230824463,-481.79,0.00029863,5]
[381492574,1756230824473,-869.43,0.00029863,5]
[381492575,1756230824482,-400.0,0.00029863,5]
[381492576,1756230824492,-1587.32,0.00029863,5]
[381492577,1756230824501,-404.82,0.00029863,5]
[381492578,1756230824510,-795.96,0.00029863,5]
[381492579,1756230824520,-1419.4,0.00029863,5]
[381492580,1756230824529,-400.0,0.00029863,5]
[381492581,1756230824538,-400.0,0.00029863,5]
[381492582,1756230824547,-1337.38,0.00029863,5]
[381492583,1756230824557,-643.48,0.00029863,5]
[381492584,1756230824567,-1193.06,0.00029863,5]
[381492585,1756230824576,-400.0,0.00029863,5]
[381492586,1756230824586,-1405.96,0.00029863,5]
[381492587,1756230824596,-1262.91,0.00029863,5]
[381492588,1756230824606,-400.0,0.00029863,5]
[381492589,1756230824615,-400.0,0.00029863,5]
[381492590,1756230824624,-847.69,0.00029863,5]
[381492591,1756230824634,-1432.19,0.00029863,5]
[381492592,1756230824643,-837.85,0.00029863,5]
[381492593,1756230824653,-1265.35,0.00029863,5]
[381492594,1756230824663,-1066.71,0.00029863,5]
[381492595,1756230824672,-1337.65,0.00029863,5]
[381492596,1756230824681,-983.38,0.00029863,5]
[381492597,1756230824691,-448.3,0.00029863,5]
[381492598,1756230824703,-1261.95428136,0.00029863,5]
[381492599,1756230824810,-357.04184481,0.00029863,5]
[381492600,1756230824845,-400.0,0.00028219,5]
[381492601,1756230824854,-11.666703,0.00029863,5]
[381492602,1756230824868,-63.52717083,0.00029863,5]
[381492603,1756230824878,-391.15036915,0.00029863,5]
[381492604,1756230824950,-500.0,0.00029042,2]
[381492605,1756230824960,-1028.21963085,0.00029863,5]
[381492606,1756230824970,-510.88,0.00029863,5]
[381492607,1756230824981,-663.12036915,0.00029863,5]
[381492608,1756230826030,-153.0,0.00019895,2]
[381492609,1756230826039,-153.0,0.00019895,2]
[381492610,1756230826049,-153.0,0.00019895,2]
[381492611,1756230826063,-153.0,0.00019895,2]
[381492612,1756230826073,-153.0,0.00019895,2]
[381492613,1756230826082,-153.0,0.00019895,2]
[381492614,1756230826092,-521.62613,0.000248,7]
[381492615,1756230826101,-4596.129974,0.000248,7]
[381492616,1756230826112,-521.62613,0.000249,7]
[381492617,1756230826121,-4596.129974,0.000249,7]
[381492618,1756230826131,-521.62613,0.000268,7]
[381492619,1756230826140,-4596.129974,0.000268,7]
[381492620,1756230826150,-521.62613,0.000273,7]
[381492621,1756230826160,-4596.129974,0.000273,7]
[381492622,1756230826169,-521.62613,0.000273,7]
[381492623,1756230826180,-4596.129974,0.000273,7]
[381492624,1756230826189,-521.62613,0.00027397,7]
[381492625,1756230826202,-4596.129974,0.00027397,7]
[381492626,1756230826211,-1592.29,0.00027397,5]
[381492627,1756230826220,-786.58,0.00027397,5]
[381492628,1756230826230,-521.626132,0.00027397,7]
[381492629,1756230826240,-1592.29,0.00027671,5]
[381492630,1756230826250,-786.58,0.00027671,5]
[381492631,1756230826259,-1592.29,0.00027945,5]
[381492632,1756230826270,-400.0,0.00027945,5]
[381492633,1756230826280,-786.58,0.00027945,5]
[381492634,1756230826290,-760.31,0.00028219,5]
[381492635,1756230826301,-1592.29,0.00028219,5]
[381492636,1756230826311,-400.0,0.00028219,5]
[381492637,1756230826321,-400.0,0.00028493,5]
[381492638,1756230826330,-760.31,0.00028493,5]
[381492639,1756230826339,-1592.29,0.00028493,5]
[381492640,1756230826349,-400.0,0.00028767,5]
[381492641,1756230826359,-760.31,0.00028767,5]
[381492642,1756230826368,-500.0,0.00028768,2]
[381492643,1756230826378,-400.0,0.00029041,5]
[381492644,1756230826389,-500.0,0.00029042,2]
[381492645,1756230826399,-400.0,0.00029315,5]
[381492646,1756230826408,-405.96063028,0.00029316,2]
[381492647,1756230826418,-500.0,0.00029316,2]
[381492648,1756230826428,-400.0,0.00029589,5]
[381492649,1756230826438,-500.0,0.0002959,2]
[381492650,1756230826448,-1975.71963085,0.00029863,5]
[381492651,1756230826458,-1378.39,0.00029863,5]
[381492652,1756230826467,-866.21,0.00029863,5]
[381492653,1756230826478,-436.05,0.00029863,5]
[381492654,1756230826488,-1097.19,0.00029863,5]
[381492655,1756230826498,-400.0,0.00029863,5]
[381492656,1756230826507,-968.52,0.00029863,5]
[381492657,1756230826517,-1097.27,0.00029863,5]
[381492658,1756230826526,-898.9,0.00029863,5]
[381492659,1756230826536,-1054.02,0.00029863,5]
[381492660,1756230826546,-400.0,0.00029863,5]
[381492661,1756230826556,-894.21,0.00029863,5]
[381492662,1756230826565,-486.16,0.00029863,5]
[381492663,1756230826575,-400.0,0.00029863,5]
[381492664,1756230826585,-2351.0,0.00029863,5]
[381492665,1756230826594,-183.29685263,0.00029863,5]
[381492666,1756230826604,-990.16,0.00029863,5]
[381492667,1756230826613,-400.0,0.00029863,5]
[381492668,1756230826623,-708.23,0.00029863,5]
[381492669,1756230826633,-812.56,0.00029863,5]
[381492670,1756230826643,-1481.93,0.00029863,5]
[381492671,1756230826652,-400.0,0.00029863,5]
[381492672,1756230826662,-1309.05,0.00029863,5]
[381492673,1756230826671,-400.0,0.00029863,5]
[381492674,1756230826681,-716.67,0.00029863,5]
[381492675,1756230826691,-440.38,0.00029863,5]
[381492676,1756230826703,-1045.55,0.00029863,5]
[381492677,1756230826712,-1040.13,0.00029863,5]
[381492678,1756230826722,-10414.16013024,0.00029863,5]
[381492679,1756230826806,-153.0,0.00019895,2]
[381492680,1756230826816,-400.0,0.00027397,5]
[381492681,1756230826826,-2162.18986976,0.00029863,5]
[381492682,1756230826836,-610.13,0.00029863,5]
[381492683,1756230826845,-1232.14,0.00029863,5]
[381492684,1756230826854,-400.0,0.00029863,5]
[381492685,1756230826864,-453.93,0.00029863,5]
[381492686,1756230826873,-513.88,0.00029863,5]
[381492687,1756230826882,-1004.11,0.00029863,5]
[381492688,1756230826891,-1144.57,0.00029863,5]
[381492689,1756230826901,-956.51,0.00029863,5]
[381492690,1756230826911,-752.61,0.00029863,5]
[381492691,1756230826920,-2716.73,0.00029863,5]
[381492692,1756230826929,-1348.02,0.00029863,5]
[381492693,1756230826939,-400.0,0.00029863,5]
[381492694,1756230826948,-400.0,0.00029863,5]
[381492695,1756230826957,-795.95,0.00029863,5]
[381492696,1756230826967,-720.68,0.00029863,5]
[381492697,1756230826977,-400.0,0.00029863,5]
[381492698,1756230826987,-583.37,0.00029863,5]
[381492699,1756230826996,-1164.87,0.00029863,5]
[381492700,1756230827007,-796.49,0.00029863,5]
[381492701,1756230827016,-1208.11,0.00029863,5]
[381492702,1756230827025,-1234.75,0.00029863,5]
[381492703,1756230827034,-725.15,0.00029863,5]
[381492704,1756230827044,-400.0,0.00029863,5]
[381492705,1756230827053,-1204.31,0.00029863,5]
[381492706,1756230827063,-2365.85,0.00029863,5]
[381492707,1756230827072,-607.03,0.00029863,5]
[381492708,1756230827082,-1391.48,0.00029863,5]
[381492709,1756230827091,-1460.18,0.00029863,5]
[381492710,1756230827100,-774.92,0.00029863,5]
[381492711,1756230827109,-1529.6,0.00029863,5]
[381492712,1756230827119,-1214.51,0.00029863,5]
[381492713,1756230827128,-949.27,0.00029863,5]
[381492714,1756230827137,-1381.91,0.00029863,5]
[381492715,1756230827322,-681.18,0.00029863,5]
[381492716,1756230827332,-846.41,0.00029863,5]